Cogmind - Beta 11 @@@ ROGUE MODE // 2022.03.18 @ 22:45:43 // Winter2019/RPGLIKE Player: IzRey Result: Destroyed by G-34 Mercenary with Small Laser Performance ------------- Evolutions (1) 500 Regions Visited (2) 400 Robots Destroyed (38) 190 Value Destroyed (889) 889 Prototype IDs (1) 20 Alien Tech Used (0) 0 Bonus (46) 46 TOTAL SCORE: 2045 Bonus ------- High Alert Combat Kills 46 Cogmind --------- Core Integrity 0/650 Matter 222/300 Energy 272/280 System Corruption 0% Temperature Cool (6) Movement Treading (170) Location -9/Materials Parts ------- > --- POWER (1) -------- Heavy Ion Engine > --- PROPULSION (2) --- Armored Treads Armored Treads > --- UTILITY (4) ------ Improved Heat Sink Improved Terrain Scanner Targeting Computer > --- WEAPON (2) ------- Medium Laser Autogun > --- INVENTORY (4) ---- Armored Treads Rocket Launcher Katana Peak State ------------ > --- POWER ------------ Light Nuclear Core > --- PROPULSION ------- Armored Treads Armored Treads > --- UTILITY ---------- Improved Heat Sink Improved Terrain Scanner Targeting Computer > --- WEAPON ----------- Autogun Katana > --- INVENTORY -------- Armored Treads Medium Laser Mini Grenade Launcher [Rating: 21] Favorites ----------- Power Heavy Ion Engine Engine Heavy Ion Engine Power Core Light Nuclear Core Propulsion Armored Treads Treads Armored Treads Wheel Compact Wheel Utility Improved Terrain Scanner Device Improved Terrain Scanner Processor Targeting Computer Weapon Medium Laser Energy Gun Medium Laser Ballistic Gun Autogun Launcher Rocket Launcher Slashing Weapon Katana Build | -11 -10 -9 ------- Run | Scr Mat Mat Slots Evolved 5 | 3 1 1 Power . | . . . Propulsion 1 | 1 . . Utility 3 | 1 1 1 Weapon 1 | 1 . . Parts Attached 25 | 6 5 14 Power 3 | 1 1 1 Engine 2 | 1 . 1 Core 1 | . 1 . Reactor . | . . . Propulsion 7 | 2 2 3 Treads 2 | . . 2 Leg . | . . . Wheel 5 | 2 2 1 Hover . | . . . Flight . | . . . Utility 4 | 1 2 1 Device 3 | 1 1 1 Storage . | . . . Processor 1 | . 1 . Hackware . | . . . Protection . | . . . Artifact . | . . . Weapon 11 | 2 . 9 Energy Gun 4 | 1 . 3 Energy Cannon . | . . . Ballistic Gun 3 | 1 . 2 Ballistic Cannon . | . . . Launcher 1 | . . 1 Special Weapon . | . . . Impact Weapon . | . . . Slashing Weapon 3 | . . 3 Piercing Weapon . | . . . Special Melee Weapon . | . . . Unidentified Prototypes 1 | . . 1 Parts Lost . | . . . Power . | . . . Propulsion . | . . . Utility . | . . . Weapon . | . . . Highest Loss Streak . | . . . To Critical Strikes . | . . . Average Slot Usage (%) 97 | . 98 97 Engine 9 | . 10 8 Core 3 | . 3 3 Treads 11 | . . 19 Wheel 14 | . 27 5 Device 20 | . 14 24 Processor 12 | . 13 11 Energy Gun 10 | . 13 7 Ballistic Gun 11 | . 13 10 Slashing Weapon 2 | . . 4 Naked Turns . | . . . Heaviest Build 16 | 7 10 16 Greatest Support 40 | 20 32 40 Greatest Overweight (x) . | . . . Average Overweight (x) . | . . . Largest Inventory Capacity 4 | 3 3 4 Average Capacity 3 | 3 3 3 Most Carried 3 | 3 3 3 Average Carried 2 | 1 3 2 Final Capacity 4 | 3 3 4 Final Carried 3 | 3 3 3 Class Distribution -------------------- 87% | Mutant 8% | Skirmisher 4% | Assassin Dominant Class ---------------- Mutant | -10/Materials Mutant | -9/Materials Resources | -11 -10 -9 ----------- Run | Scr Mat Mat Matter Collected 768 | 264 111 393 Remotely . | . . . Salvage Created 1126 | 87 296 743 Parts 83 | 4 30 49 Haulers Intercepted 3 | . 1 2 Recyclers Shooed 1 | . 1 . Parts Field Recycled . | . . . Retrieved Matter . | . . . Parts Self-Destructed . | . . . Prevented . | . . . Kills | -11 -10 -9 ------- Run | Scr Mat Mat Combat Hostiles Destroyed 28 | . 11 17 Melee 4 | . . 4 Guns 24 | . 11 13 Classes Destroyed 10 | 2 5 3 Worker 2 | . 1 1 Builder 1 | . 1 . Tunneler 1 | 1 . . Hauler 3 | . 1 2 Recycler 1 | 1 . . Operator 1 | . . 1 Watcher 1 | . . 1 Swarmer 11 | . 5 6 Grunt 13 | . 6 7 Sentry 4 | . . 4 Best Kill Streak 4 | 2 4 3 Combat Bots Only 4 | . 4 3 Max Kills in Single Turn 1 | 1 1 1 Gunslinging . | . . . Exploded . | . . . Melee 1 | . . 1 Uniques/NPCs Destroyed . | . . . Combat | -11 -10 -9 -------- Run | Scr Mat Mat Damage Taken 1621 | . 356 1265 Core 1318 | . 297 1021 Absorbed by Shields . | . . . Redirected to Core 1002 | . 183 819 Core Remaining (%) 100 | 100 100 . Volleys Fired 140 | 4 62 74 Largest 2 | 2 2 2 Hottest 83 | 70 70 83 Shots Fired 260 | 8 122 130 Gun 255 | 8 122 125 Cannon . | . . . Launcher 5 | . . 5 Special . | . . . Kinetic 134 | 4 61 69 Thermal 121 | 4 61 56 Explosive 5 | . . 5 Electromagnetic . | . . . Robot Hit Streak 24 | 3 8 24 Robot Miss Streak 5 | 1 5 5 Penetration Max . | . . . Secondary Targets 5 | . 2 3 Max Gunslinging Chain 1 | . 1 1 Shots Hit Robots 166 | 5 69 92 Core Hits 65 | 3 26 36 Critical Kills . | . . . Critical Parts Destroyed . | . . . Critical Strikes 8 | . 3 5 Burn 5 | . 3 2 Sever 3 | . . 3 Melee Attacks 27 | . . 27 Impact . | . . . Slashing 27 | . . 27 Piercing . | . . . Sneak Attacks 2 | . . 2 Combat Hostiles . | . . . Follow-up Attacks . | . . . Damage Inflicted 2477 | 46 718 1713 Guns 1766 | 46 718 1002 Cannons . | . . . Explosions 45 | . . 45 Melee 666 | . . 666 Ramming . | . . . Kinetic 917 | 34 261 622 Thermal 849 | 12 457 380 Explosive 45 | . . 45 Electromagnetic . | . . . Impact . | . . . Slashing 666 | . . 666 Piercing . | . . . Highest Corruption . | . . . Average Corruption . | . . . Corruption Purged . | . . . Corruption Blocked . | . . . Overload Shots . | . . . Overflow Damage 68 | . . 68 Projectiles . | . . . Explosions . | . . . Melee 68 | . . 68 Knockbacks . | . . . Impact . | . . . Kinetic . | . . . Secondary . | . . . Self-Inflicted Damage . | . . . Shots . | . . . Rammed . | . . . Targets Rammed . | . . . Kicked . | . . . Crushed . | . . . Highest Temperature 220 | 50 220 36 Average Temperature 59 | 24 66 10 Received Heat Transfer 531 | . 90 441 Effects 1 | . 1 . Interference 1 | . 1 . Siege Activations . | . . . Robots Corrupted . | . . . Combat Hostiles . | . . . Parts Fried . | . . . Impact Corruptions . | . . . Robots Melted . | . . . Combat Hostiles . | . . . Parts Melted 5 | . 2 3 Heat Transferred 2923 | 37 1591 1295 Parts Sabotaged . | . . . Parts Stolen . | . . . Parts Stripped . | . . . Power Chain Reactions . | . . . Missiles Intercepted . | . . . Alert | -11 -10 -9 ------- Run | Scr Mat Mat Peak Influence 538 | 10 283 538 Initial 76 | . 6 76 Average 240 | 4 161 305 Maximum Alert Level 2 | . 1 2 Low Security (%) 43 | 100 74 19 Level 1 36 | . 25 46 Level 2 19 | . . 33 Level 3 . | . . . Level 4 . | . . . Level 5 . | . . . High Security . | . . . Max Security . | . . . Squads Dispatched 4 | . 2 2 Investigation . | . . . Extermination . | . . . Reinforcement 4 | . 2 2 Assault . | . . . Garrison . | . . . Intercept . | . . . Searches Triggered . | . . . Construction Impeded . | . . . Haulers Reinforced . | . . . Active Scanning Responses . | . . . Cargo Convoy Interrupts . | . . . Stealth | -11 -10 -9 --------- Run | Scr Mat Mat Distress Signals 3 | . 2 1 Communications Jammed . | . . . Distress Signals . | . . . Times Spotted 55 | . 22 33 Peak Tracking Total 6 | . 6 4 Tactical Retreats 5 | . . 5 Traps | -11 -10 -9 ------- Run | Scr Mat Mat Traps Triggered . | . . . Indirectly . | . . . Trap Hack Attempts . | . . . Triggered . | . . . Disarmed . | . . . Reprogrammed . | . . . Reused . | . . . Traps Extracted . | . . . Installed . | . . . Triggered . | . . . Machines | -11 -10 -9 ---------- Run | Scr Mat Mat Machines Disabled 6 | . . 6 Max in Single Turn 2 | . . 2 Machines Sabotaged . | . . . Garrisons Compromised . | . . . Overloaded Fab Kills . | . . . Hacking | -11 -10 -9 --------- Run | Scr Mat Mat Machines Accessed 6 | . 3 3 Terminals 6 | . 3 3 Fabricators . | . . . Repair Stations . | . . . Recycling Units . | . . . Scanalyzers . | . . . Garrison Access . | . . . Total Hacks 17 | . 10 7 Successful 10 | . 5 5 Failed 7 | . 5 2 Catastrophic . | . . . Database Lockouts . | . . . Manual 12 | . 6 6 Terminals 17 | . 10 7 Fabricators . | . . . Repair Stations . | . . . Recycling Units . | . . . Scanalyzers . | . . . Garrison Access . | . . . Terminal Hacks 2 | . 2 . Alert Level 1 | . 1 . Locate Traps 1 | . 1 . Fabricator Hacks . | . . . Repair Station Hacks . | . . . Recycling Unit Hacks . | . . . Scanalyzer . | . . . Garrison Access Hacks . | . . . Unauthorized Hacks 8 | . 3 5 Terminals 8 | . 3 5 Track 2 | . 1 1 Botnet 5 | . 2 3 Disrupt 1 | . . 1 Fabricators . | . . . Repair Stations . | . . . Recycling Units . | . . . Scanalyzers . | . . . Garrison Access . | . . . Data Cores Recovered . | . . . Used . | . . . Hacking Detections 6 | . 3 3 Full Trace Events 1 | . 1 . Feedback Events . | . . . Feedback Blocked . | . . . Robot Schematics Acquired . | . . . Robots Built . | . . . Authchips . | . . . Time . | . . . Total Robot Build Rating . | . . . Part Schematics Acquired . | . . . Parts Built . | . . . Authchips . | . . . Time . | . . . Total Part Build Rating . | . . . Parts Repaired . | . . . Time . | . . . Parts Recycled . | . . . Recycled Matter . | . . . Retrieved Matter . | . . . Retrieved Components . | . . . Parts Scanalyzed . | . . . Part Schematics Acquired . | . . . Parts Damaged . | . . . Bothacking | -11 -10 -9 ------------ Run | Scr Mat Mat Used RIF Installer . | . . . Robots Hacked . | . . . Non-combat . | . . . Combat . | . . . Robot Hacks Applied . | . . . Relay Couplers Released . | . . . Fabnet Peak Effective % . | . . . Robots Rewired . | . . . Allies Hacked . | . . . Hacks Repelled . | . . . Allies | -11 -10 -9 -------- Run | Scr Mat Mat Total Allies . | . . . Largest Group . | . . . Highest-Rated Group . | . . . Highest-Rated Ally . | . . . Total Orders . | . . . Ally Attacks . | . . . Total Damage . | . . . Kills . | . . . Allies Corrupted . | . . . Allies Melted . | . . . Intel | -11 -10 -9 ------- Run | Scr Mat Mat Robot Analysis Total . | . . . Derelict Logs Recovered . | . . . Drone Launches . | . . . Drone Recoveries . | . . . Exploration | -11 -10 -9 ------------- Run | Scr Mat Mat Turns Passed 1881 | 62 717 1102 Spaces Moved 1054 | 50 507 497 Core 3 | 3 . . Treads 367 | . . 367 Legs . | . . . Wheels 684 | 47 507 130 Hover . | . . . Flight . | . . . Fastest Speed 50 | 50 80 100 Average Speed 119 | 78 91 151 Slowest Speed 170 | 80 100 170 Overloaded Moves . | . . . Propulsion Burnouts . | . . . Robots Hopped . | . . . Cave-ins Triggered . | . . . Exploration Rate (%) 36 | 3 60 47 Regions Visited 2 Branch Regions . Pre-discovered Areas . | . . . Known Exits Taken . | . . . Unknown Exits Taken 2 | 1 1 . Scrap Searched . | . . . Spaces Dug 5 | . . 5 Terrain Destroyed 6 | . . 6 Melee 5 | . . 5 Projectile . | . . . AOE 1 | . . 1 Terrain Rammed . | . . . Walls Destroyed . | . . . Machines Disabled . | . . . Actions | -11 -10 -9 --------- Run | Scr Mat Mat Total 1401 | 62 651 688 Wait 101 | . 57 44 Move 1052 | 49 506 497 Hop . | . . . Pick Up 8 | 3 1 4 Fast Attach 16 | 6 5 5 Attach . | . . . Detach . | . . . Swap 9 | . . 9 Drop 14 | . 4 10 Fire 140 | 4 62 74 Melee 27 | . . 27 Ram . | . . . Kick . | . . . Crush . | . . . Escape Stasis . | . . . Rewire . | . . . Trap . | . . . Miscellaneous 34 | . 16 18 Route ------- -11/Scrapyard -10/Materials (discovered 3 exits: *Mat x2 / [*Min]) -9/Materials (discovered 1 exit: [*Mat]) History --------- Turn | Location | Event 1 | -11/Scrapyard | Upgraded with Propulsion slot (x1) 1 | -11/Scrapyard | Upgraded with Utility slot (x1) 1 | -11/Scrapyard | Upgraded with Weapon slot (x1) 28 | -11/Scrapyard | Discovered new exit (range 15) 63 | -11/Scrapyard | Entered Materials 307 | -10/Materials | Build established: Mutant 319 | -10/Materials | Discovered new exit (range 4) 547 | -10/Materials | Discovered new exit (range 8) 630 | -10/Materials | Reached level 2 660 | -10/Materials | Discovered new exit (range 16) 684 | -10/Materials | Upgraded with Utility slot (x1) 780 | -10/Materials | Entered another Materials area 782 | -9/Materials | Reached level 3 1326 | -9/Materials | Reached level 4 1501 | -9/Materials | Discovered new exit (range 13) 1507 | -9/Materials | Core integrity fell below 50% 1548 | -9/Materials | Core integrity fell below 20% 1643 | -9/Materials | Upgraded with Utility slot (x1) 1882 | -9/Materials | Destroyed by G-34 Mercenary with Small Laser Last Messages --------------- 01719_ R-06 Scavenger collects Lgt. Nuclear Core. 01719_ Acquired 6 matter. 01723_ R-06 Scavenger collects Particle Gun. 01731_ Acquired 18 matter. 01733_ Matter Pump disabled. 01734_ R-06 Scavenger collects Lgt. Treads. 01746_ Acquired 19 matter. 01751_ Acquired 16 matter. 01809_ Connecting with Terminal... >>Trojan(Botnet) Trojan loaded successfully. Testing... Terminal linked with 2 systems. Awaiting botnet instructions. >>Trojan(Disrupt) Trojan loaded successfully. Testing... Disruption routine running. 01862_ Y-45 Defender Imp. Ion Engine severed. 01870_ Y-45 Defender Lgt. Treads severed. Map ----- +----------------------------------------------------+ | ??????????????????????????????????????????#?####?# | | ??????????????????????????????????????#? ? ??### | | ????????????????????????????????????? ? "??? ##?## | | ??????????????????????????????????????+ "Y? / | | ???????????????????????????????????? ?# ? ?### | | ???????????????????????????????????? ? ? ##### | | ????????????????????????????????????? #? ? # | | ??????????????????????????????????? ????????## | | ??????????????????????????????????#?? ##?## ## | | ????????????????????????? ??????????? ##?## ## | | ???????????????????? ??? #? ?????? ###?# ## | | ?????????????????? ?? + /? ? ??? ? # | | ????????????????# ? # # """?+ ? + | | ???????????????##? # # ""? ? ? # | | ???????????????## ? # # ""? #?###### # | | ????????????? # # # ## # # | | ???????????? ? # ? # w# ?"" ## """ # # | | ???????????? # # # S"" ## """ ? # | | ??????????? # # # "" ? ## """ # ##### | | ??????????? #? ? # # ? ## # ##?## | | ?????????? ? ?#####?# #??###### # ##### | | ?????????? ######## ######?## # ##### | | ??????????? ####### ##########+### #### | | ????????? ####### Y | | ??????????### ###### =* g % | | ?????????########### ## @ = | | ????????#?########## ## ####### ########### | | ????????############ ####;######### ############ | | ???????############# # ! ##### ############ | | ??????##??########## # """ ##### ############ | | ??????#########?#### # """ ##### ############ | | ?????#?############# # """ ##### ############ | | ?????????#######?### # ##### ############ | | ???????############# + """ ##### ############ | | ??????#??########### # """ ##### ############ | | ???????#?########### # """ ##### ############ | | ??????##?#??##?##### # ##### ############ | | ??????#?############+############## ############ | | ???????#???####### ######## ############ | | ??????##??#??##### # ## ############ | | ???????###??###### # ############ | | ????????########## """ """ + T ############ | | ??????#?##?####?## """ """ # ############ | | ????????########## """ """ # #"############### | | ??????????#?##?### ## ## ####### | | ???????????####### ## ## """ """ ####### | | ?????????#?#?#?############## ## """ """ ####### | | ???????????##?############### ## """ """ ####### | | ??????????#?#####??########## ## ####### | | ??????????#?##?####?######### ## ####### | +----------------------------------------------------+ Best States ------------- Heat Dissipation 45 Energy Generation 14 Energy Capacity 280 Matter Stores 300 Matter Capacity 300 Sight Range 16 Robot Scan Range 14 Terrain Scan Range 16 Terrain Scan Density 510 Evasion (%) 44 Targeting Accuracy 5 Recoil Reduction 2 Item Schematics ----------------- None Robot Schematics ------------------ None Fabricated ------------ Nothing Alien Tech Used ----------------- None Achievements -------------- None Challenges ------------ None RPGLIKE | -11 -10 -9 --------- Run | Scr Mat Mat Levels Raised 3 | . 1 2 XP Earned 8832 | 3000 1515 4317 XP Spent 7500 | 3000 1500 3000 Upgrades 23 | 6 7 10 Propulsion Slot 1 | 1 . . Utility Slot 3 | 1 1 1 Weapon Slot 1 | 1 . . Core Integrity 1 | . . 1 Heat Dissipation 1 | . 1 . Inventory Capacity 4 | 3 . 1 Sensor Range 7 | . . 7 Terrain Scan Density 5 | . 5 . Protomatter Created 319 | . 154 165 Integrity Restored 695 | . 325 370 Core 667 | . 297 370 Parts 28 | . 28 . Protomatter Decayed 84 | . 43 41 Game ------ Seed GammaCoreTearclaws Manual? 0 Play Time 00:24:49 Cumulative 458.6 hours Start 2022.03.18 @ 22:20:57 End 2022.03.18 @ 22:45:43 Sessions 1 Manual Loads 0 Difficulty Rogue Special Mode Winter2019/RPGLIKE Game No. 18 Rogue 1 Adventurer 17 Explorer 0 Win Type - Total 1 Types 1/0/0/0/0/0/0/0/0 Lore% 33 Gallery% 54 Achievement% 42 Wizard Run 0 Options --------- ASCII 0 Keyboard 1 Movement Vi Keybinds 0 Fullscreen 1 Font 18/X11Bold Map View 66x50 Tactical HUD 1 Map Filters NONE Filters NONE Steam 1 RUN: 1a2caf6c-0908-4777-97e8-c64271b4d391